[Event "*** Titled Tuesday Blitz"]
[Site "Chess.com"]
[Date "2019.04.02"]
[Round "2"]
[White "Korchmar_Vasiliy"]
[Black "mikhaillushenkov"]
[Result "1/2-1/2"]
[WhiteElo "2760"]
[BlackElo "2656"]
[TimeControl "180+2"]
[EndTime "14:25:30 PDT"]
[Termination "Game drawn by agreement"]

1. d4 {[%clk 0:03:01.2]} 1... Nf6 {[%clk 0:03:00.7]} 2. c4 {[%clk 0:03:02.1]}
2... e6 {[%clk 0:03:01.9]} 3. g3 {[%clk 0:03:03.2]} 3... d5 {[%clk 0:03:03.1]}
4. Bg2 {[%clk 0:03:03.9]} 4... c6 {[%clk 0:03:04.4]} 5. Nf3 {[%clk 0:03:02]}
5... Nbd7 {[%clk 0:03:05.5]} 6. O-O {[%clk 0:02:52.5]} 6... Bd6 {[%clk
0:03:06.5]} 7. Nfd2 {[%clk 0:02:48.9]} 7... O-O {[%clk 0:03:06.8]} 8. Nc3 {[%clk
0:02:50]} 8... Be7 {[%clk 0:03:07.9]} 9. e4 {[%clk 0:02:28.5]} 9... dxe4 {[%clk
0:03:09]} 10. Ndxe4 {[%clk 0:02:30.4]} 10... Nxe4 {[%clk 0:03:10.3]} 11. Bxe4
{[%clk 0:02:32.2]} 11... e5 {[%clk 0:02:45.2]} 12. dxe5 {[%clk 0:02:22]} 12...
Nxe5 {[%clk 0:02:42.3]} 13. Bxh7+ {[%clk 0:02:22]} 13... Kxh7 {[%clk 0:02:44.2]}
14. Qh5+ {[%clk 0:02:22.8]} 14... Kg8 {[%clk 0:02:45.8]} 15. Qxe5 {[%clk
0:02:24.7]} 15... Bf6 {[%clk 0:02:37.9]} 16. Qh5 {[%clk 0:02:15.9]} 16... Qd3
{[%clk 0:02:33.4]} 17. Bf4 {[%clk 0:01:29.6]} 17... Be6 {[%clk 0:02:01.5]} 18.
Rfe1 {[%clk 0:01:18.6]} 18... Bxc3 {[%clk 0:01:55.3]} 19. bxc3 {[%clk
0:01:19.3]} 19... Qxc4 {[%clk 0:01:55.3]} 20. Be5 {[%clk 0:01:16.2]} 20... f6
{[%clk 0:01:42.2]} 21. Bd4 {[%clk 0:01:17.3]} 21... b6 {[%clk 0:01:21.3]} 22.
Rad1 {[%clk 0:01:06.2]} 22... Qxa2 {[%clk 0:01:13.4]} 23. Be3 {[%clk 0:01:04.9]}
23... Bd5 {[%clk 0:01:07.6]} 24. Rd4 {[%clk 0:00:58.5]} 24... Rae8 {[%clk
0:00:46.7]} 25. Rh4 {[%clk 0:00:57.9]} 25... Qc2 {[%clk 0:00:47.4]} 26. c4
{[%clk 0:00:42.7]} 26... Be6 {[%clk 0:00:31.6]} 27. Ra1 {[%clk 0:00:30.3]} 27...
Re7 {[%clk 0:00:27.2]} 28. Bf4 {[%clk 0:00:25]} 28... Rd7 {[%clk 0:00:21.6]} 29.
Be3 {[%clk 0:00:22.7]} 29... Qf5 {[%clk 0:00:21.5]} 30. Qe2 {[%clk 0:00:18.6]}
30... Rfd8 {[%clk 0:00:21.8]} 31. Re1 {[%clk 0:00:15.5]} 31... Qd3 {[%clk
0:00:21.5]} 32. Bxb6 {[%clk 0:00:11]} 32... Qxe2 {[%clk 0:00:20.5]} 33. Rxe2
{[%clk 0:00:12.9]} 33... Rd1+ {[%clk 0:00:21.4]} 34. Kg2 {[%clk 0:00:13.5]}
34... Re8 {[%clk 0:00:22.8]} 35. Rhe4 {[%clk 0:00:10.4]} 35... axb6 {[%clk
0:00:19.1]} 36. Rxe6 {[%clk 0:00:11.6]} 36... Rxe6 {[%clk 0:00:19.4]} 37. Rxe6
{[%clk 0:00:13.5]} 37... b5 {[%clk 0:00:20.9]} 38. Rxc6 {[%clk 0:00:13.1]} 38...
bxc4 {[%clk 0:00:22.4]} 39. Rxc4 {[%clk 0:00:15]} 39... Rd3 {[%clk 0:00:23]} 40.
h4 {[%clk 0:00:15.5]} 40... Kf7 {[%clk 0:00:24]} 41. Rc7+ {[%clk 0:00:16.3]}
41... Kg6 {[%clk 0:00:25.1]} 42. Rc5 {[%clk 0:00:16.7]} 42... Kh6 {[%clk
0:00:26.2]} 43. f3 {[%clk 0:00:15.5]} 43... g5 {[%clk 0:00:26.6]} 44. hxg5+
{[%clk 0:00:09.1]} 44... fxg5 {[%clk 0:00:28.5]} 45. Rc6+ {[%clk 0:00:10.7]}
45... Kg7 {[%clk 0:00:29]} 46. Rb6 {[%clk 0:00:10.1]} 46... Rc3 {[%clk
0:00:29.6]} 47. Rb5 {[%clk 0:00:10.4]} 47... Kg6 {[%clk 0:00:30.6]} 48. Rb6+
{[%clk 0:00:11.5]} 48... Kg7 {[%clk 0:00:32]} 49. Re6 {[%clk 0:00:12.6]} 49...
Rd3 {[%clk 0:00:32.4]} 50. Kf2 {[%clk 0:00:13.7]} 50... Ra3 {[%clk 0:00:32.8]}
51. Re3 {[%clk 0:00:14.3]} 51... Ra2+ {[%clk 0:00:33.9]} 52. Re2 {[%clk
0:00:15.7]} 52... Ra3 {[%clk 0:00:35.2]} 53. Rd2 {[%clk 0:00:16.7]} 53... Rb3
{[%clk 0:00:35.6]} 54. Ke2 {[%clk 0:00:13.9]} 54... Kf6 {[%clk 0:00:36.4]} 55.
Rd3 {[%clk 0:00:11.8]} 55... Rb1 {[%clk 0:00:36.4]} 56. Ke3 {[%clk 0:00:10.2]}
56... Re1+ {[%clk 0:00:37.2]} 57. Kf2 {[%clk 0:00:10.3]} 57... Rb1 {[%clk
0:00:37.7]} 58. Rd6+ {[%clk 0:00:11.5]} 58... Kf5 {[%clk 0:00:39]} 59. Rd5+
{[%clk 0:00:12.6]} 59... Kf6 {[%clk 0:00:40.5]} 60. g4 {[%clk 0:00:13]} 60...
Ra1 {[%clk 0:00:40.6]} 61. Rf5+ {[%clk 0:00:13.5]} 61... Kg6 {[%clk 0:00:41.7]}
62. Re5 {[%clk 0:00:13.6]} 62... Kf6 {[%clk 0:00:42.4]} 63. Re2 {[%clk 0:00:14]}
63... Rb1 {[%clk 0:00:43.3]} 64. Rc2 {[%clk 0:00:14.4]} 64... Ra1 {[%clk
0:00:44.6]} 65. Ke3 {[%clk 0:00:14.2]} 65... Ra3+ {[%clk 0:00:44.7]} 66. Ke4
{[%clk 0:00:14.8]} 66... Ra4+ {[%clk 0:00:46]} 67. Kd3 {[%clk 0:00:16]} 67...
Ra3+ {[%clk 0:00:47]} 68. Rc3 {[%clk 0:00:17]} 68... Ra4 {[%clk 0:00:47.4]} 69.
Rc6+ {[%clk 0:00:17.1]} 69... Kg7 {[%clk 0:00:48.5]} 70. Rc4 {[%clk 0:00:18]}
70... Ra8 {[%clk 0:00:45.1]} 71. Rc5 {[%clk 0:00:10.1]} 71... Kf6 {[%clk
0:00:45.3]} 72. Rc6+ {[%clk 0:00:07.6]} 72... Kg7 {[%clk 0:00:46]} 73. Ke4
{[%clk 0:00:07.8]} 73... Re8+ {[%clk 0:00:44.3]} 74. Kf5 {[%clk 0:00:06.6]}
74... Rf8+ {[%clk 0:00:45.4]} 75. Kxg5 {[%clk 0:00:05.4]} 75... Rxf3 {[%clk
0:00:46.4]} 76. Rc7+ {[%clk 0:00:06.9]} 76... Kg8 {[%clk 0:00:46.8]} 77. Kg6
{[%clk 0:00:07.5]} 77... Rf8 {[%clk 0:00:46.2]} 78. g5 {[%clk 0:00:07.2]} 78...
Ra8 {[%clk 0:00:47.1]} 79. Kh6 {[%clk 0:00:04.7]} 79... Rb8 {[%clk 0:00:47.2]}
80. g6 {[%clk 0:00:05.2]} 80... Ra8 {[%clk 0:00:48]} 81. Rg7+ {[%clk 0:00:05.6]}
81... Kh8 {[%clk 0:00:48.6]} 82. Rh7+ {[%clk 0:00:06.1]} 82... Kg8 {[%clk
0:00:50.1]} 83. Rg7+ {[%clk 0:00:05.6]} 1/2-1/2

[Event "*** Titled Tuesday Blitz"]
[Site "Chess.com"]
[Date "2019.04.02"]
[Round "2"]
[White "jlandaw"]
[Black "Rap_woyska"]
[Result "0-1"]
[WhiteElo "2417"]
[BlackElo "2535"]
[TimeControl "180+2"]
[EndTime "14:25:38 PDT"]
[Termination "Rap_woyska won by resignation"]

1. e4 {[%clk 0:03:01.9]} 1... c5 {[%clk 0:03:00.2]} 2. Nc3 {[%clk 0:03:01.8]}
2... e6 {[%clk 0:03:01.4]} 3. g3 {[%clk 0:03:03.1]} 3... Nc6 {[%clk 0:03:02.9]}
4. Bg2 {[%clk 0:03:04.3]} 4... a6 {[%clk 0:03:04.5]} 5. d3 {[%clk 0:03:04.1]}
5... b5 {[%clk 0:03:03.2]} 6. a3 {[%clk 0:03:05.2]} 6... Bb7 {[%clk 0:03:04.8]}
7. f4 {[%clk 0:03:05.8]} 7... d6 {[%clk 0:03:06]} 8. Nf3 {[%clk 0:03:06.5]} 8...
Be7 {[%clk 0:03:07.4]} 9. O-O {[%clk 0:03:07.6]} 9... Nf6 {[%clk 0:03:08.8]} 10.
h3 {[%clk 0:03:08.8]} 10... h5 {[%clk 0:03:08.4]} 11. Be3 {[%clk 0:03:08.8]}
11... Qc7 {[%clk 0:03:08]} 12. Qd2 {[%clk 0:03:03.5]} 12... Rd8 {[%clk
0:02:33.2]} 13. Rae1 {[%clk 0:02:31.9]} 13... O-O {[%clk 0:02:32.8]} 14. Ng5
{[%clk 0:01:59.1]} 14... d5 {[%clk 0:02:20]} 15. exd5 {[%clk 0:01:59.3]} 15...
exd5 {[%clk 0:02:15.4]} 16. Bf2 {[%clk 0:01:47.1]} 16... d4 {[%clk 0:02:05]} 17.
Nce4 {[%clk 0:01:46.8]} 17... Nb8 {[%clk 0:01:50.7]} 18. Qd1 {[%clk 0:01:37.7]}
18... h4 {[%clk 0:01:29.1]} 19. gxh4 {[%clk 0:01:23]} 19... Rfe8 {[%clk
0:00:59.8]} 20. Bg3 {[%clk 0:00:48.7]} 20... Bc8 {[%clk 0:00:33.2]} 21. Nxf6+
{[%clk 0:00:46.3]} 21... Bxf6 {[%clk 0:00:33.3]} 22. Qh5 {[%clk 0:00:47.2]}
22... Bf5 {[%clk 0:00:30.2]} 23. Rxe8+ {[%clk 0:00:31.1]} 23... Rxe8 {[%clk
0:00:28.8]} 24. Nxf7 {[%clk 0:00:25.8]} 24... g6 {[%clk 0:00:12.6]} 25. Nh6+
{[%clk 0:00:25.4]} 25... Kh7 {[%clk 0:00:14.3]} 26. Ng4+ {[%clk 0:00:16.3]}
26... gxh5 {[%clk 0:00:13.9]} 27. Nxf6+ {[%clk 0:00:17.9]} 27... Kg6 {[%clk
0:00:15]} 28. Nxe8 {[%clk 0:00:19.3]} 28... Qe7 {[%clk 0:00:11.7]} 29. Re1
{[%clk 0:00:20.4]} 29... Qd8 {[%clk 0:00:11.9]} 30. Be4 {[%clk 0:00:17.7]} 30...
Nd7 {[%clk 0:00:08.1]} 31. Bxf5+ {[%clk 0:00:18.1]} 31... Kxf5 {[%clk 0:00:10]}
32. Nd6+ {[%clk 0:00:19.4]} 32... Kg6 {[%clk 0:00:11]} 33. Re6+ {[%clk
0:00:20.7]} 33... Kh7 {[%clk 0:00:12.4]} 34. Nf7 {[%clk 0:00:20.9]} 34... Qf8
{[%clk 0:00:10]} 35. Ng5+ {[%clk 0:00:21.1]} 35... Kg7 {[%clk 0:00:11.6]} 36.
Kg2 {[%clk 0:00:19.2]} 36... Qf5 {[%clk 0:00:11.7]} 37. Re7+ {[%clk 0:00:20.3]}
37... Kg8 {[%clk 0:00:13.3]} 38. Kf3 {[%clk 0:00:18.6]} 38... Nf6 {[%clk
0:00:12.8]} 39. Re5 {[%clk 0:00:19.2]} 39... Qd7 {[%clk 0:00:12.8]} 40. f5
{[%clk 0:00:20.2]} 40... Nd5 {[%clk 0:00:12.4]} 41. Ne4 {[%clk 0:00:19.6]} 41...
Kf7 {[%clk 0:00:10.9]} 42. Nxc5 {[%clk 0:00:19.6]} 42... Qc6 {[%clk 0:00:12.5]}
43. Ne4 {[%clk 0:00:20.6]} 43... Ne3 {[%clk 0:00:10.2]} 44. Kf4 {[%clk
0:00:17.1]} 44... Nd5+ {[%clk 0:00:09.9]} 45. Kg5 {[%clk 0:00:16.6]} 45... Kg7
{[%clk 0:00:06]} 46. f6+ {[%clk 0:00:15.4]} 46... Nxf6 {[%clk 0:00:05.4]} 47.
Re7+ {[%clk 0:00:16.4]} 47... Kf8 {[%clk 0:00:07]} 48. Re5 {[%clk 0:00:09.9]}
48... Nxe4+ {[%clk 0:00:05.5]} 49. Rxe4 {[%clk 0:00:11.8]} 49... Kg7 {[%clk
0:00:06.3]} 50. Be5+ {[%clk 0:00:12.7]} 50... Kh7 {[%clk 0:00:07.6]} 51. Bxd4
{[%clk 0:00:14]} 51... Qg6+ {[%clk 0:00:09]} 52. Kf4 {[%clk 0:00:15.1]} 52...
Qf7+ {[%clk 0:00:10.9]} 53. Ke3 {[%clk 0:00:15.7]} 53... Qa2 {[%clk 0:00:11.5]}
54. Re7+ {[%clk 0:00:14.8]} 54... Kg6 {[%clk 0:00:12.4]} 55. Kf4 {[%clk
0:00:16]} 55... Qd5 {[%clk 0:00:11.5]} 56. Rg7+ {[%clk 0:00:16.3]} 56... Kh6
{[%clk 0:00:13.1]} 57. Rg5 {[%clk 0:00:17.8]} 57... Qxd4+ {[%clk 0:00:13.9]} 58.
Kf3 {[%clk 0:00:14.7]} 58... Qxb2 {[%clk 0:00:14.4]} 59. Rc5 {[%clk 0:00:13.6]}
59... Qxa3 {[%clk 0:00:15.2]} 60. Rc6+ {[%clk 0:00:15]} 60... Kg7 {[%clk
0:00:16.8]} 61. Kf4 {[%clk 0:00:16.4]} 61... Qb4+ {[%clk 0:00:15.9]} 62. Kf5
{[%clk 0:00:15.7]} 62... Qf8+ {[%clk 0:00:17.2]} 63. Kg5 {[%clk 0:00:16.1]}
63... Qe7+ {[%clk 0:00:17.4]} 64. Kf4 {[%clk 0:00:13.3]} 64... Qf7+ {[%clk
0:00:17.5]} 65. Ke4 {[%clk 0:00:14.6]} 65... Qe8+ {[%clk 0:00:15.1]} 66. Kd5
{[%clk 0:00:15.4]} 66... Qd7+ {[%clk 0:00:16.7]} 67. Rd6 {[%clk 0:00:15.5]}
67... Qb7+ {[%clk 0:00:14.8]} 68. Ke6 {[%clk 0:00:15.3]} 68... Qf3 {[%clk
0:00:13.6]} 69. Ke5 {[%clk 0:00:09.8]} 69... Qg3+ {[%clk 0:00:13.6]} 70. Kd5
{[%clk 0:00:09.8]} 70... Qxh3 {[%clk 0:00:15.5]} 71. Rxa6 {[%clk 0:00:10.9]}
71... Qxh4 {[%clk 0:00:16.9]} 72. Ra7+ {[%clk 0:00:07.7]} 72... Kg6 {[%clk
0:00:17.7]} 73. Ke5 {[%clk 0:00:08.8]} 73... Qg3+ {[%clk 0:00:17.3]} 74. Kd5
{[%clk 0:00:07.8]} 74... h4 {[%clk 0:00:17.7]} 0-1

[Event "*** Titled Tuesday Blitz"]
[Site "Chess.com"]
[Date "2019.04.02"]
[Round "2"]
[White "SavelijTartakover"]
[Black "DanielMieles1985"]
[Result "1-0"]
[WhiteElo "2568"]
[BlackElo "2675"]
[TimeControl "180+2"]
[EndTime "14:25:44 PDT"]
[Termination "SavelijTartakover won by resignation"]

1. d4 {[%clk 0:03:01.9]} 1... Nf6 {[%clk 0:03:00.4]} 2. Bg5 {[%clk 0:03:01.6]}
2... e6 {[%clk 0:03:00.6]} 3. e4 {[%clk 0:03:01.9]} 3... h6 {[%clk 0:03:01.5]}
4. Bxf6 {[%clk 0:03:01.9]} 4... Qxf6 {[%clk 0:03:03.4]} 5. c3 {[%clk 0:03:03]}
5... e5 {[%clk 0:03:04.2]} 6. Nf3 {[%clk 0:02:34.5]} 6... d6 {[%clk 0:03:02.3]}
7. Bc4 {[%clk 0:02:33.8]} 7... Be7 {[%clk 0:02:57.3]} 8. O-O {[%clk 0:02:33.1]}
8... O-O {[%clk 0:02:57.5]} 9. h3 {[%clk 0:02:30]} 9... c6 {[%clk 0:02:57.1]}
10. Nbd2 {[%clk 0:02:29.3]} 10... Bd8 {[%clk 0:02:50.2]} 11. Re1 {[%clk
0:02:28]} 11... b5 {[%clk 0:02:41.7]} 12. Bb3 {[%clk 0:02:26.9]} 12... Bb6
{[%clk 0:02:41.2]} 13. a4 {[%clk 0:02:23.1]} 13... bxa4 {[%clk 0:02:36.4]} 14.
Rxa4 {[%clk 0:02:19.8]} 14... exd4 {[%clk 0:02:25.8]} 15. cxd4 {[%clk
0:02:18.7]} 15... Be6 {[%clk 0:02:25.1]} 16. Bxe6 {[%clk 0:02:05]} 16... Qxe6
{[%clk 0:02:25]} 17. Nc4 {[%clk 0:02:05.6]} 17... Nd7 {[%clk 0:02:22.3]} 18. Qc2
{[%clk 0:01:53.1]} 18... d5 {[%clk 0:02:19]} 19. exd5 {[%clk 0:01:46.8]} 19...
Qxd5 {[%clk 0:02:20.1]} 20. Nxb6 {[%clk 0:01:39.9]} 20... axb6 {[%clk
0:02:13.2]} 21. Rc4 {[%clk 0:01:40.3]} 21... c5 {[%clk 0:02:06.4]} 22. dxc5
{[%clk 0:01:39.1]} 22... Nxc5 {[%clk 0:02:07.8]} 23. b4 {[%clk 0:01:33.2]} 23...
Ne6 {[%clk 0:02:05]} 24. Rd1 {[%clk 0:01:30.9]} 24... Qb5 {[%clk 0:02:01.4]} 25.
Nd4 {[%clk 0:01:28.5]} 25... Nxd4 {[%clk 0:02:01.9]} 26. Rcxd4 {[%clk 0:01:29]}
26... Rac8 {[%clk 0:02:01.1]} 27. Qd3 {[%clk 0:01:24.4]} 27... Qxd3 {[%clk
0:01:47.8]} 28. R1xd3 {[%clk 0:01:26.3]} 28... Rc1+ {[%clk 0:01:48.1]} 29. Kh2
{[%clk 0:01:26.6]} 29... Rb1 {[%clk 0:01:49.3]} 30. Rf3 {[%clk 0:01:24.6]} 30...
h5 {[%clk 0:01:39.8]} 31. Rff4 {[%clk 0:01:21.2]} 31... f6 {[%clk 0:01:36.5]}
32. Rd6 {[%clk 0:01:09.6]} 32... Rb8 {[%clk 0:01:35.2]} 33. h4 {[%clk
0:01:06.8]} 33... Rb7 {[%clk 0:01:33.7]} 34. f3 {[%clk 0:01:02.7]} 34... Kf7
{[%clk 0:01:31.9]} 35. Rc6 {[%clk 0:00:57.4]} 35... b5 {[%clk 0:01:27.4]} 36.
Rc5 {[%clk 0:00:56.5]} 36... Kg6 {[%clk 0:01:27.8]} 37. g4 {[%clk 0:00:55.9]}
37... hxg4 {[%clk 0:01:25.7]} 38. Rxg4+ {[%clk 0:00:56]} 38... Kf7 {[%clk
0:01:17.6]} 39. h5 {[%clk 0:00:53.7]} 39... Rb3 {[%clk 0:01:16.5]} 40. Kg3
{[%clk 0:00:53.9]} 40... Rb1 {[%clk 0:01:10.1]} 41. Rh4 {[%clk 0:00:42.2]} 41...
Rg1+ {[%clk 0:01:02.4]} 42. Kf2 {[%clk 0:00:43]} 42... Rb1 {[%clk 0:00:42.9]}
43. h6 {[%clk 0:00:38.3]} 43... gxh6 {[%clk 0:00:44.1]} 44. Rxh6 {[%clk
0:00:39.2]} 44... Kg7 {[%clk 0:00:43.9]} 45. Rh4 {[%clk 0:00:39.8]} 45... Rb3
{[%clk 0:00:38.2]} 46. Kg3 {[%clk 0:00:40.1]} 46... Kg6 {[%clk 0:00:34.4]} 47.
Rg4+ {[%clk 0:00:36.5]} 47... Kf7 {[%clk 0:00:33.4]} 48. Rh5 {[%clk 0:00:37.3]}
48... Ke6 {[%clk 0:00:31.9]} 49. Re4+ {[%clk 0:00:38.2]} 49... Kd6 {[%clk
0:00:32.8]} 50. Kf4 {[%clk 0:00:37.9]} 50... Rb8 {[%clk 0:00:24]} 51. Rf5 {[%clk
0:00:33]} 51... Rh8 {[%clk 0:00:18.2]} 52. Rxf6+ {[%clk 0:00:31]} 52... Kd5
{[%clk 0:00:18.4]} 53. Rf5+ {[%clk 0:00:31.5]} 53... Kd6 {[%clk 0:00:16.5]} 54.
Rf6+ {[%clk 0:00:20.4]} 54... Kd5 {[%clk 0:00:14.3]} 55. Kg3 {[%clk 0:00:16.9]}
55... Rg8+ {[%clk 0:00:12.5]} 56. Kh4 {[%clk 0:00:17.3]} 56... Rb1 {[%clk
0:00:10.7]} 57. Rf5+ {[%clk 0:00:17.1]} 57... Kd6 {[%clk 0:00:11.6]} 58. Rg4
{[%clk 0:00:16.7]} 58... Rxg4+ {[%clk 0:00:11.7]} 59. fxg4 {[%clk 0:00:17.3]}
59... Rxb4 {[%clk 0:00:10.3]} 60. Kh5 {[%clk 0:00:18.6]} 60... Ke6 {[%clk
0:00:11]} 61. Rc5 {[%clk 0:00:18.5]} 61... Rb1 {[%clk 0:00:10.6]} 62. g5 {[%clk
0:00:17.4]} 62... Kd6 {[%clk 0:00:11.8]} 63. Rf5 {[%clk 0:00:17.4]} 63... Kc6
{[%clk 0:00:11.9]} 64. g6 {[%clk 0:00:17.7]} 64... Rh1+ {[%clk 0:00:12.4]} 65.
Kg5 {[%clk 0:00:18.8]} 65... Kb6 {[%clk 0:00:12]} 66. g7 {[%clk 0:00:18.6]}
66... Rg1+ {[%clk 0:00:12.2]} 67. Kf6 {[%clk 0:00:19.6]} 67... Rxg7 {[%clk
0:00:10.9]} 68. Kxg7 {[%clk 0:00:20.3]} 68... Ka5 {[%clk 0:00:11.8]} 69. Kf6
{[%clk 0:00:21.3]} 69... Kb4 {[%clk 0:00:13.1]} 70. Ke5 {[%clk 0:00:21.5]} 70...
Kc3 {[%clk 0:00:09.5]} 71. Rf3+ {[%clk 0:00:18.6]} 71... Kc4 {[%clk 0:00:06.7]}
72. Rf4+ {[%clk 0:00:17.9]} 72... Kc3 {[%clk 0:00:07.4]} 73. Kd5 {[%clk
0:00:19]} 73... b4 {[%clk 0:00:08.6]} 74. Rf3+ {[%clk 0:00:20]} 1-0

[Event "*** Titled Tuesday Blitz"]
[Site "Chess.com"]
[Date "2019.04.02"]
[Round "2"]
[White "vladimirdamjanovic"]
[Black "ChainsOfFantasia"]
[Result "1-0"]
[WhiteElo "2543"]
[BlackElo "2426"]
[TimeControl "180+2"]
[EndTime "14:25:44 PDT"]
[Termination "vladimirdamjanovic won by resignation"]

1. e4 {[%clk 0:03:01.6]} 1... e6 {[%clk 0:03:00.8]} 2. d4 {[%clk 0:03:02.1]}
2... d5 {[%clk 0:03:02.7]} 3. Nc3 {[%clk 0:03:03.5]} 3... Nf6 {[%clk 0:03:02.6]}
4. Bg5 {[%clk 0:03:03.7]} 4... dxe4 {[%clk 0:03:03.4]} 5. Nxe4 {[%clk
0:03:04.4]} 5... Be7 {[%clk 0:03:04.8]} 6. Bxf6 {[%clk 0:03:05.6]} 6... gxf6
{[%clk 0:03:06.3]} 7. g3 {[%clk 0:03:06.9]} 7... f5 {[%clk 0:03:00.3]} 8. Nc3
{[%clk 0:03:07]} 8... c5 {[%clk 0:02:59.6]} 9. d5 {[%clk 0:03:07.6]} 9... O-O
{[%clk 0:02:57.2]} 10. Bg2 {[%clk 0:03:03.5]} 10... exd5 {[%clk 0:02:58.3]} 11.
Qxd5 {[%clk 0:02:59.6]} 11... Qxd5 {[%clk 0:02:58.4]} 12. Nxd5 {[%clk
0:03:00.5]} 12... Bd8 {[%clk 0:02:55.8]} 13. O-O-O {[%clk 0:02:59.7]} 13... Nc6
{[%clk 0:02:56.9]} 14. Ne2 {[%clk 0:02:54.9]} 14... Be6 {[%clk 0:02:57.1]} 15.
Nef4 {[%clk 0:02:56]} 15... Bg5 {[%clk 0:02:54.6]} 16. Kb1 {[%clk 0:02:52.3]}
16... Rad8 {[%clk 0:02:50]} 17. h4 {[%clk 0:02:46]} 17... Bxf4 {[%clk
0:02:31.8]} 18. Nxf4 {[%clk 0:02:47.9]} 18... Rxd1+ {[%clk 0:02:19.9]} 19. Rxd1
{[%clk 0:02:47.8]} 19... Rd8 {[%clk 0:02:21.6]} 20. Rxd8+ {[%clk 0:02:48.2]}
20... Nxd8 {[%clk 0:02:23.5]} 21. a3 {[%clk 0:02:42.2]} 21... Kg7 {[%clk
0:02:23.4]} 22. Kc1 {[%clk 0:02:41.4]} 22... Kf6 {[%clk 0:02:24.5]} 23. Kd2
{[%clk 0:02:42.2]} 23... Ke5 {[%clk 0:02:23.2]} 24. Ke3 {[%clk 0:02:43]} 24...
Bc4 {[%clk 0:02:14.8]} 25. b3 {[%clk 0:02:37.8]} 25... Ba6 {[%clk 0:02:12.6]}
26. c4 {[%clk 0:02:29.7]} 26... Ne6 {[%clk 0:02:10.3]} 27. Nd3+ {[%clk
0:02:08.2]} 27... Kd6 {[%clk 0:02:05.8]} 28. Bh3 {[%clk 0:01:53.8]} 28... Nd4
{[%clk 0:02:04.3]} 29. b4 {[%clk 0:01:42.6]} 29... b6 {[%clk 0:01:52.1]} 30. b5
{[%clk 0:01:35.5]} 30... Bc8 {[%clk 0:01:52.9]} 31. Kf4 {[%clk 0:01:30.4]} 31...
Be6 {[%clk 0:01:45.7]} 32. Nb2 {[%clk 0:01:31]} 32... h6 {[%clk 0:01:38.2]} 33.
a4 {[%clk 0:01:30.5]} 33... Ke7 {[%clk 0:01:23.5]} 34. Bf1 {[%clk 0:01:16.9]}
34... Kf6 {[%clk 0:01:21.6]} 35. Bd3 {[%clk 0:01:12.8]} 35... Nb3 {[%clk
0:01:18.5]} 36. Bc2 {[%clk 0:01:09.6]} 36... Nd4 {[%clk 0:01:08.3]} 37. Bd1
{[%clk 0:01:10.6]} 37... Bc8 {[%clk 0:01:06.3]} 38. Ke3 {[%clk 0:01:06.1]} 38...
Bb7 {[%clk 0:01:01.1]} 39. a5 {[%clk 0:01:05.3]} 39... bxa5 {[%clk 0:00:56.7]}
40. Na4 {[%clk 0:01:06]} 40... Ne6 {[%clk 0:00:57.9]} 41. f4 {[%clk 0:00:57.1]}
41... Be4 {[%clk 0:00:56.8]} 42. g4 {[%clk 0:00:55.4]} 42... Bb1 {[%clk
0:00:51.6]} 43. g5+ {[%clk 0:00:55.8]} 43... hxg5 {[%clk 0:00:51.9]} 44. fxg5+
{[%clk 0:00:56]} 44... Kg6 {[%clk 0:00:52.5]} 45. Bf3 {[%clk 0:00:54]} 45... f4+
{[%clk 0:00:51.5]} 46. Kd2 {[%clk 0:00:49.9]} 46... Kf5 {[%clk 0:00:47.1]} 47.
Bd5 {[%clk 0:00:49.4]} 47... Kg4 {[%clk 0:00:44.5]} 48. Bxe6+ {[%clk 0:00:46.4]}
48... fxe6 {[%clk 0:00:46.4]} 49. Nxc5 {[%clk 0:00:47.6]} 49... e5 {[%clk
0:00:47.8]} 50. Nd3 {[%clk 0:00:43.4]} 50... e4 {[%clk 0:00:45.5]} 51. Ne5+
{[%clk 0:00:35.5]} 51... Kf5 {[%clk 0:00:32.8]} 52. Nc6 {[%clk 0:00:27.7]} 52...
Bd3 {[%clk 0:00:32.7]} 53. Nd4+ {[%clk 0:00:24.9]} 53... Ke5 {[%clk 0:00:29.1]}
54. Nc6+ {[%clk 0:00:25.4]} 54... Kf5 {[%clk 0:00:24.3]} 55. Nxa5 {[%clk
0:00:26.4]} 55... Kg4 {[%clk 0:00:22.3]} 56. g6 {[%clk 0:00:27.3]} 56... f3
{[%clk 0:00:17.1]} 57. g7 {[%clk 0:00:27.4]} 57... f2 {[%clk 0:00:18.4]} 58.
g8=Q+ {[%clk 0:00:27.8]} 58... Kxh4 {[%clk 0:00:19.6]} 59. Qh7+ {[%clk
0:00:24.7]} 59... Kg3 {[%clk 0:00:20.7]} 60. Qg6+ {[%clk 0:00:25.9]} 60... Kf3
{[%clk 0:00:21.7]} 61. Qf5+ {[%clk 0:00:27]} 61... Kg3 {[%clk 0:00:23.2]} 62.
Qe5+ {[%clk 0:00:27.2]} 62... Kf3 {[%clk 0:00:24.5]} 63. Qf6+ {[%clk 0:00:28.4]}
63... Kg3 {[%clk 0:00:25.9]} 64. Qg5+ {[%clk 0:00:29]} 64... Kf3 {[%clk
0:00:27.4]} 65. Qf5+ {[%clk 0:00:21]} 65... Kg3 {[%clk 0:00:28.6]} 66. Qg5+
{[%clk 0:00:18.7]} 66... Kf3 {[%clk 0:00:29.9]} 67. Qf6+ {[%clk 0:00:18.6]}
67... Kg3 {[%clk 0:00:29.3]} 68. Ke3 {[%clk 0:00:19.5]} 68... f1=Q {[%clk
0:00:28.5]} 69. Qxf1 {[%clk 0:00:21]} 69... Bxf1 {[%clk 0:00:30]} 70. Kxe4
{[%clk 0:00:22.5]} 70... Kg4 {[%clk 0:00:29.8]} 71. Kd5 {[%clk 0:00:22.4]} 71...
Kf5 {[%clk 0:00:31.7]} 72. Nc6 {[%clk 0:00:23.7]} 72... Bg2+ {[%clk 0:00:29.5]}
73. Kc5 {[%clk 0:00:22.4]} 73... Ke6 {[%clk 0:00:30.3]} 74. Nxa7 {[%clk
0:00:22.6]} 74... Kd7 {[%clk 0:00:32.2]} 75. Nc6 {[%clk 0:00:23]} 75... Kc7
{[%clk 0:00:34.1]} 76. Ne5 {[%clk 0:00:23.3]} 76... Kb7 {[%clk 0:00:35]} 77. Kb4
{[%clk 0:00:23.7]} 77... Be4 {[%clk 0:00:35.1]} 78. c5 {[%clk 0:00:24.9]} 78...
Bh1 {[%clk 0:00:36.5]} 79. Nc4 {[%clk 0:00:26.3]} 79... Bg2 {[%clk 0:00:37.5]}
80. c6+ {[%clk 0:00:24.1]} 80... Kc7 {[%clk 0:00:38.9]} 81. Kc5 {[%clk
0:00:24.8]} 81... Bh1 {[%clk 0:00:35.9]} 82. b6+ {[%clk 0:00:25.8]} 82... Kb8
{[%clk 0:00:31.4]} 83. c7+ {[%clk 0:00:23.3]} 83... Kb7 {[%clk 0:00:29.5]} 84.
Nd6+ {[%clk 0:00:23.5]} 1-0